Workbook

Sheet Разходи
B3: Бюджет за събитие за [Име на събитие]
H4: Разходи
H6: Очаквани | I6: Действителни
C7: Общо разходи | H7: =SUM(D14,D22,D28,D35,H14,H22,H27) -> 1,145.00 лв. | I7: =SUM(E14,E22,E28,E35,I14,I22,I27) -> 395.00 лв.
C9: Място | D9: Очаквани | E9: Действителни | G9: Почерпка | H9: Очаквани | I9: Действителни
C10: Такси за стая/зала | D10: 500.00 лв. | E10: 250.00 лв. | G10: Храна
C11: Персонал на мястото | D11: 400.00 лв. | E11: 50.00 лв. | G11: Напитки
C12: Оборудване | G12: Покривки
C13: Маси и столове | G13: Персонал и бакшиш
C14: Общо | D14: =SUBTOTAL(109,Таблица1[Очаквани]) -> 900.00 лв. | E14: =SUBTOTAL(109,Таблица1[Действителни]) -> 300.00 лв. | G14: Общо | H14: =SUBTOTAL(109,Таблица5[Очаквани]) -> 0.00 лв. | I14: =SUBTOTAL(109,Таблица5[Действителни]) -> 0.00 лв.
C16: Украса | D16: Очаквани | E16: Действителни | G16: Програма | H16: Очаквани | I16: Действителни
C17: Цветя | D17: 200.00 лв. | E17: 50.00 лв. | G17: Изпълнители
C18: Свещи | G18: Лектори
C19: Осветление | G19: Пътувания
C20: Балони | G20: Хотел
C21: Хартиени консумативи | G21: Други
C22: Общо | D22: =SUBTOTAL(109,Таблица2[Очаквани]) -> 200.00 лв. | E22: =SUBTOTAL(109,Таблица2[Действителни]) -> 50.00 лв. | G22: Общо | H22: =SUBTOTAL(109,Таблица6[Очаквани]) -> 0.00 лв. | I22: =SUBTOTAL(109,Таблица6[Действителни]) -> 0.00 лв.
C24: Реклама | D24: Очаквани | E24: Действителни | G24: Награди | H24: Очаквани | I24: Действителни
C25: Графични материали | D25: 45.00 лв. | E25: 45.00 лв. | G25: Ленти/почетни значки/трофеи
C26: Копирни услуги/печат | G26: Подаръци
C27: Пощенски разходи | G27: Общо | H27: =SUBTOTAL(109,Таблица7[Очаквани]) -> 0.00 лв. | I27: =SUBTOTAL(109,Таблица7[Действителни]) -> 0.00 лв.
C28: Общо | D28: =SUBTOTAL(109,Таблица3[Очаквани]) -> 45.00 лв. | E28: =SUBTOTAL(109,Таблица3[Действителни]) -> 45.00 лв.
C30: Разни | D30: Очаквани | E30: Действителни
C31: Телефон
C32: Транспорт
C33: Канцеларски материали
C34: Факс услуги
C35: Общо | D35: =SUBTOTAL(109,Таблица4[Очаквани]) -> 0.00 лв. | E35: =SUBTOTAL(109,Таблица4[Действителни]) -> 0.00 лв.

Sheet Приходи
B3: Бюджет за събитие за [Име на събитие]
F4: Приходи
F6: Очаквани | G6: Действителни
B7: Общо приходи | F7: =SUM(F14,F21,F28,F36) -> 1,936.00 лв. | G7: =SUM(G14,G21,G28,G36) -> 1,831.00 лв.
B9: Такси за вход
B10: Очаквани | C10: Действителни | F10: Очаквани | G10: Действителни
B11: 300 | C11: 278 | D11: Възрастни @ | E11: 5.00 лв. | F11: =B11*E11 -> 1,500.00 лв. | G11: =C11*E11 -> 1,390.00 лв.
B12: 197 | C12: 195 | D12: Деца @ | E12: 2.00 лв. | F12: =B12*E12 -> 394.00 лв. | G12: =C12*E12 -> 390.00 лв.
B13: 42 | C13: 51 | D13: Други @ | E13: 1.00 лв. | F13: =B13*E13 -> 42.00 лв. | G13: =C13*E13 -> 51.00 лв.
F14: =SUM(F11:F13) -> 1,936.00 лв. | G14: =SUM(G11:G13) -> 1,831.00 лв.
B16: Реклами в програмата
B17: Очаквани | C17: Действителни | F17: Очаквани | G17: Действителни
D18: Титулни страници @ | F18: =B18*E18 -> 0.00 лв. | G18: =C18*E18 -> 0.00 лв.
D19: Половин страници @ | F19: =B19*E19 -> 0.00 лв. | G19: =C19*E19 -> 0.00 лв.
D20: Четвърт страници @ | F20: =B20*E20 -> 0.00 лв. | G20: =C20*E20 -> 0.00 лв.
F21: =SUM(F18:F20) -> 0.00 лв. | G21: =SUM(G18:G20) -> 0.00 лв.
B23: Участници в изложбата/доставчици
B24: Очаквани | C24: Действителни | F24: Очаквани | G24: Действителни
D25: Големи щандове @ | F25: =B25*E25 -> 0.00 лв. | G25: =C25*E25 -> 0.00 лв.
D26: Средни щандове @ | F26: =B26*E26 -> 0.00 лв. | G26: =C26*E26 -> 0.00 лв.
D27: Малки щандове @ | F27: =B27*E27 -> 0.00 лв. | G27: =C27*E27 -> 0.00 лв.
F28: =SUM(F25:F27) -> 0.00 лв. | G28: =SUM(G25:G27) -> 0.00 лв.
B30: Разпродажба на артикули
B31: Очаквани | C31: Действителни | F31: Очаквани | G31: Действителни
D32: Артикули @ | F32: =B32*E32 -> 0.00 лв. | G32: =C32*E32 -> 0.00 лв.
D33: Артикули @ | F33: =B33*E33 -> 0.00 лв. | G33: =C33*E33 -> 0.00 лв.
D34: Артикули @ | F34: =B34*E34 -> 0.00 лв. | G34: =C34*E34 -> 0.00 лв.
D35: Артикули @ | F35: =B35*E35 -> 0.00 лв. | G35: =C35*E35 -> 0.00 лв.
F36: =SUM(F32:F35) -> 0.00 лв. | G36: =SUM(G32:G35) -> 0.00 лв.

Sheet Резюме
B3: Бюджет за събитие за [Име на събитие]
F4: Резюме за печалбата и загубата
F6: Очаквани | G6: Действителни
B7: Общо приходи | F7: =Приходи!F7 -> 1,936.00 лв. | G7: =Приходи!G7 -> 1,831.00 лв.
B8: Общо разходи | F8: =Разходи!H7 -> 1,145.00 лв. | G8: =Разходи!I7 -> 395.00 лв.
B9: Обща печалба (или загуба) | F9: =F7-F8 -> 791.00 лв. | G9: =G7-G8 -> 1,436.00 лв.
